fUST/lending_fUST_20250613
["ID","MTS","AMOUNT","RATE_DAILY","PERIOD"]
[365633647,1749814242895,-460.0,0.00021643,4]
[365633648,1749814242905,-460.0,0.00021643,4]
[365633649,1749814242915,-190.17195993,0.00021643,4]
[365633650,1749814242925,-460.0,0.00021643,4]
[365633651,1749814242937,-504.80743511,0.00021643,4]
[365633652,1749814242948,-460.0,0.00021643,4]
[365633653,1749814242958,-460.0,0.00021643,2]
[365633654,1749814242967,-571.42,0.00021643,4]
[365633655,1749814242977,-460.0,0.00021643,4]
[365633656,1749814242987,-410.0,0.00021643,4]
[365633657,1749814242997,-460.0,0.00021643,4]
[365633658,1749814243007,-360.77745493,0.00021643,4]
[365633659,1749814243017,-460.0,0.00021643,4]
[365633660,1749814243028,-460.0,0.00021643,4]
[365633661,1749814243038,-460.0,0.00021643,4]
[365633662,1749814243048,-400.0,0.00021643,4]
[365633663,1749814243058,-460.0,0.00021643,4]
[365633664,1749814243067,-460.0,0.00021643,4]
[365633665,1749814243077,-460.0,0.00021643,4]
[365633666,1749814243099,-655.11,0.00021643,4]
[365633667,1749814243110,-460.0,0.00021643,4]
[365633668,1749814243121,-460.0,0.00021643,4]
[365633669,1749814243131,-932.67,0.00021643,4]
[365633670,1749814243141,-460.0,0.00021643,4]
[365633671,1749814243150,-460.0,0.00021643,4]
[365633673,1749814243159,-460.0,0.00021643,4]
[365633675,1749814243169,-460.0,0.00021643,4]
[365633677,1749814243180,-460.0,0.00021643,4]
[365633679,1749814243189,-460.0,0.00021643,4]
[365633681,1749814243199,-406.18812099,0.00021643,4]
[365633683,1749814243209,-460.0,0.00021643,4]
[365633684,1749814243218,-460.0,0.00021643,4]
[365633685,1749814243228,-400.0,0.00021643,4]
[365633686,1749814243238,-460.0,0.00021643,4]
[365633687,1749814243247,-460.0,0.00021643,4]
[365633688,1749814243256,-460.0,0.00021643,4]
[365633689,1749814243267,-400.0,0.00021643,4]
[365633690,1749814243277,-460.0,0.00021643,4]
[365633691,1749814243286,-887.88,0.00021643,4]
[365633692,1749814243296,-2798.6,0.00021643,4]
[365633694,1749814243306,-1126.63,0.00021643,4]
[365633697,1749814243316,-460.0,0.00021643,4]
[365633698,1749814243325,-717.67,0.00021643,4]
[365633700,1749814243335,-460.0,0.00021643,4]
[365633703,1749814243344,-460.0,0.00021643,4]
[365633704,1749814243354,-460.0,0.00021643,4]
[365633706,1749814243364,-1041.72,0.00021643,4]
[365633708,1749814243374,-460.0,0.00021643,4]
[365633710,1749814243383,-750.28,0.00021643,4]
[365633712,1749814243393,-460.0,0.00021643,4]
[365633714,1749814243403,-460.0,0.00021643,4]
[365633716,1749814243412,-645.59,0.00021643,4]
[365633719,1749814243422,-460.0,0.00021643,4]
[365633721,1749814243432,-460.0,0.00021643,4]
[365633723,1749814243441,-782.08,0.00021643,4]
[365633725,1749814243450,-460.0,0.00021643,4]
[365633727,1749814243459,-460.0,0.00021643,4]
[365633729,1749814243469,-176.9539549,0.00021699,2]
[365633731,1749814243478,-573.6747916,0.00021699,2]
[365633733,1749814243487,-420.0,0.00021706,2]
[365633735,1749814243497,-420.0,0.00021706,2]
[365633737,1749814243506,-160.0,0.00021768,3]
[365633739,1749814243515,-196.0,0.0002178,2]
[365633741,1749814243525,-1200.0,0.00021807,2]
[365633743,1749814243535,-178.0,0.00021874,2]
[365633745,1749814243544,-500.0,0.00021916,2]
[365633747,1749814243553,-460.0,0.00021917,4]
[365633749,1749814243563,-500.0,0.00021917,4]
[365633751,1749814243572,-460.0,0.00021917,4]
[365633753,1749814243581,-420.0,0.00021917,4]
[365633755,1749814243591,-460.0,0.00021917,4]
[365633757,1749814243600,-460.0,0.00021917,2]
[365633759,1749814243610,-571.42,0.00021917,4]
[365633761,1749814243619,-460.0,0.00021917,4]
[365633763,1749814243628,-440.0,0.00021917,4]
[365633765,1749814243637,-420.0,0.00021917,4]
[365633767,1749814243649,-185.47593339,0.00021917,4]
[365633769,1749814243658,-460.0,0.00021917,4]
[365633771,1749814243668,-460.0,0.00021917,4]
[365633773,1749814243677,-460.0,0.00021917,4]
[365633775,1749814243687,-460.0,0.00021917,4]
[365633777,1749814243696,-655.11,0.00021917,4]
[365633779,1749814243705,-549.71859698,0.00021917,4]
[365633781,1749814243714,-460.0,0.00021917,4]
[365633783,1749814243724,-932.67,0.00021917,4]
[365633785,1749814243733,-428.46,0.00021917,4]
[365633787,1749814243742,-460.0,0.00021917,4]
[365633789,1749814243751,-460.0,0.00021917,4]
[365633791,1749814243761,-460.0,0.00021917,4]
[365633793,1749814243770,-460.0,0.00021917,4]
[365633795,1749814243780,-460.0,0.00021917,4]
[365633797,1749814243789,-460.0,0.00021917,4]
[365633799,1749814243799,-460.0,0.00021917,4]
[365633801,1749814243808,-460.0,0.00021917,4]
[365633803,1749814243817,-460.0,0.00021917,4]
[365633805,1749814243826,-460.0,0.00021917,4]
[365633807,1749814243835,-460.0,0.00021917,4]
[365633809,1749814243845,-887.88,0.00021917,4]
[365633811,1749814243854,-2798.6,0.00021917,4]
[365633813,1749814243863,-1126.63,0.00021917,4]
[365633815,1749814243872,-460.0,0.00021917,4]
[365633817,1749814243881,-717.67,0.00021917,4]
[365633819,1749814243891,-440.0,0.00021917,4]
[365633821,1749814243900,-460.0,0.00021917,4]
[365633823,1749814243910,-400.0,0.00021917,4]
[365633825,1749814243919,-1041.72,0.00021917,4]
[365633827,1749814243928,-460.0,0.00021917,4]
[365633829,1749814243941,-750.28,0.00021917,4]
[365633831,1749814243950,-460.0,0.00021917,4]
[365633833,1749814243960,-360.0,0.00021917,4]
[365633835,1749814243969,-645.59,0.00021917,4]
[365633837,1749814243979,-440.0,0.00021917,4]
[365633839,1749814243989,-311.68011707,0.00021917,4]
[365633841,1749814243999,-782.08,0.00021917,4]
[365633843,1749814244008,-460.0,0.00021917,4]
[365633845,1749814244020,-460.0,0.00021917,4]
[365633847,1749814244033,-469.86067316,0.00021932,2]
[365633849,1749814244042,-160.0,0.00021935,2]
[365633851,1749814244051,-424.32678023,0.00021938,2]
[365633853,1749814244060,-844.94977992,0.00021938,2]
[365633855,1749814244069,-2865.80653592,0.00022,5]
[365633857,1749814244079,-2000.00000099,0.00022,2]
[365633860,1749814244111,-2666.07923161,0.00022,120]
[365633862,1749814244121,-182.0,0.00022,2]
[365633863,1749814244131,-500.0,0.00022003,2]
[365633865,1749814244140,-245.80698186,0.00022042,2]
[365633876,1749814244237,-196.0,0.00022048,2]
[365633878,1749814244247,-500.0,0.0002206,2]
[365633880,1749814244257,-3742.82,0.00022096,2]
[365633882,1749814244266,-366.8329436,0.0002211,2]
[365633884,1749814244275,-365.2062734,0.0002211,2]
[365633886,1749814244284,-364.6558829,0.0002211,2]
[365633888,1749814244293,-711.9708253,0.0002211,2]
[365633890,1749814244303,-365.2062734,0.0002211,2]
[365633892,1749814244312,-365.2062734,0.0002211,2]
[365633894,1749814244321,-365.2062734,0.0002211,2]
[365633896,1749814244331,-365.2062734,0.0002211,2]
[365633898,1749814244341,-365.2062734,0.0002211,2]
[365633900,1749814244351,-365.2062734,0.0002211,2]
[365633902,1749814244361,-365.2062734,0.0002211,2]
[365633904,1749814244371,-1500.0,0.00022168,2]
[365633906,1749814244381,-500.0,0.0002219,2]
[365633908,1749814244391,-296.81100998,0.00022191,4]
[365633910,1749814244400,-360.0,0.00022191,4]
[365633912,1749814244410,-460.0,0.00022191,4]
[365633914,1749814244419,-460.0,0.00022191,2]
[365633916,1749814244428,-571.42,0.00022191,4]
[365633918,1749814244438,-360.0,0.00022191,4]
[365633920,1749814244447,-460.0,0.00022191,4]
[365633922,1749814244457,-460.0,0.00022191,4]
[365633924,1749814244465,-460.0,0.00022191,4]
[365633926,1749814244474,-460.0,0.00022191,4]
[365633928,1749814244484,-655.11,0.00022191,4]
[365633930,1749814244493,-460.0,0.00022191,4]
[365633932,1749814244504,-932.67,0.00022191,4]
[365633934,1749814244514,-460.0,0.00022191,4]
[365633936,1749814244524,-460.0,0.00022191,4]
[365633938,1749814244532,-460.0,0.00022191,4]
[365633940,1749814244542,-156.29,0.00022191,4]
[365633942,1749814244551,-196.91297623,0.00022191,4]
[365633944,1749814244561,-442.15,0.00022191,4]
[365633946,1749814244571,-460.0,0.00022191,4]
[365633948,1749814244580,-460.0,0.00022191,4]
[365633950,1749814244589,-460.0,0.00022191,4]
[365633952,1749814244599,-460.0,0.00022191,4]
[365633954,1749814244608,-460.0,0.00022191,4]
[365633956,1749814244617,-887.88,0.00022191,4]
[365633957,1749814244627,-2798.6,0.00022191,4]
[365633959,1749814244637,-1126.63,0.00022191,4]
[365633961,1749814244646,-460.0,0.00022191,4]
[365633963,1749814244656,-717.67,0.00022191,4]
[365633965,1749814244665,-460.0,0.00022191,4]
[365633967,1749814244674,-1041.72,0.00022191,4]
[365633969,1749814244683,-400.0,0.00022191,4]
[365633971,1749814244692,-750.28,0.00022191,4]
[365633973,1749814244702,-460.0,0.00022191,4]
[365633975,1749814244711,-645.59,0.00022191,4]
[365633977,1749814244721,-782.08,0.00022191,4]
[365633979,1749814244730,-440.0,0.00022191,4]
[365633981,1749814244740,-460.0,0.00022191,4]
[365633983,1749814244750,-223.08,0.0002223,2]
[365633985,1749814244759,-1144.0,0.0002232,2]
[365633987,1749814244770,-153.06190237,0.00022332,2]
[365633989,1749814244780,-5000.0,0.00022332,2]
[365633991,1749814244790,-500.0,0.00022332,2]
[365633993,1749814244799,-151.3354925,0.00022332,2]
[365633996,1749814244810,-637.47389238,0.00022332,2]
[365633998,1749814244819,-500.0,0.00022332,2]
[365633999,1749814244829,-500.0,0.00022332,2]
[365634001,1749814244838,-500.0,0.00022332,2]
[365634003,1749814244847,-500.0,0.00022332,2]
[365634005,1749814244857,-500.0,0.00022332,2]
[365634007,1749814244866,-500.0,0.00022332,2]
[365634009,1749814244876,-252.75982885,0.00022332,2]
[365634011,1749814244886,-207.4,0.00022332,2]
[365634013,1749814244896,-500.0,0.00022364,2]
[365634015,1749814244906,-469.86067316,0.000224,2]
[365634017,1749814244916,-1144.0,0.00022427,2]
[365634019,1749814244927,-2241.36,0.00022455,3]
[365634021,1749814244937,-1120.68,0.00022455,3]
[365634023,1749814244953,-560.34,0.00022455,3]
[365634025,1749814244963,-12531.02669373,0.00022455,3]
[365634027,1749814244973,-844.94977992,0.00022455,3]
[365634029,1749814244984,-500.0,0.00022464,2]
[365634032,1749814244994,-460.0,0.00022465,4]
[365634033,1749814245004,-460.0,0.00022465,2]
[365634035,1749814245014,-571.42,0.00022465,4]
[365634037,1749814245026,-440.0,0.00022465,4]
[365634039,1749814245035,-463.46343709,0.00022465,4]
[365634041,1749814245046,-460.0,0.00022465,4]
[365634043,1749814245056,-290.0,0.00022465,4]
[365634045,1749814245066,-655.11,0.00022465,4]
[365634048,1749814245076,-460.0,0.00022465,4]
[365634050,1749814245086,-932.67,0.00022465,4]
[365634051,1749814245096,-460.0,0.00022465,4]
[365634053,1749814245105,-460.0,0.00022465,4]
[365634055,1749814245116,-460.0,0.00022465,4]
[365634057,1749814245125,-460.0,0.00022465,4]
[365634059,1749814245136,-460.0,0.00022465,4]
[365634060,1749814245145,-460.0,0.00022465,4]
[365634061,1749814245154,-460.0,0.00022465,4]
[365634062,1749814245163,-380.0,0.00022465,4]
[365634063,1749814245172,-887.88,0.00022465,4]
[365634064,1749814245181,-2798.6,0.00022465,4]
[365634065,1749814245190,-1126.63,0.00022465,4]
[365634066,1749814245199,-380.0,0.00022465,4]
[365634067,1749814245208,-717.67,0.00022465,4]
[365634068,1749814245217,-460.0,0.00022465,4]
[365634069,1749814245226,-1041.72,0.00022465,4]
[365634070,1749814245236,-750.28,0.00022465,4]
[365634071,1749814245245,-460.0,0.00022465,4]
[365634072,1749814245254,-645.59,0.00022465,4]
[365634073,1749814245263,-782.08,0.00022465,4]
[365634074,1749814245272,-460.0,0.00022465,4]
[365634075,1749814245281,-500.0,0.00022466,2]
[365634076,1749814245291,-500.0,0.00022466,2]
[365634077,1749814245300,-500.0,0.00022466,2]
[365634078,1749814245309,-212.87470086,0.00022466,2]
[365634079,1749814245318,-500.0,0.00022466,2]
[365634080,1749814245327,-500.0,0.00022466,2]
[365634081,1749814245336,-500.0,0.00022466,2]
[365634082,1749814245345,-265.87230779,0.00022466,2]
[365634083,1749814245355,-500.0,0.00022466,2]
[365634084,1749814245364,-500.0,0.00022466,2]
[365634085,1749814245373,-500.0,0.00022466,2]
[365634086,1749814245382,-500.0,0.00022466,2]
[365634087,1749814245391,-500.0,0.00022466,2]
[365634088,1749814245400,-500.0,0.00022466,2]
[365634089,1749814245409,-500.0,0.00022466,2]
[365634090,1749814245418,-500.0,0.00022466,2]
[365634091,1749814245428,-500.0,0.00022466,2]
[365634092,1749814245437,-500.0,0.00022466,2]
[365634093,1749814245446,-500.0,0.00022466,2]
[365634094,1749814245456,-500.0,0.00022466,2]
[365634096,1749814245465,-500.0,0.00022466,2]
[365634097,1749814245474,-500.0,0.00022466,2]
[365634098,1749814245483,-500.0,0.00022466,2]
[365634100,1749814245493,-500.0,0.00022466,2]
[365634102,1749814245504,-500.0,0.00022466,2]
[365634104,1749814245513,-500.0,0.00022466,2]
[365634106,1749814245524,-500.0,0.00022466,2]
[365634108,1749814245534,-500.0,0.00022466,2]
[365634110,1749814245544,-500.0,0.00022466,2]
[365634112,1749814245553,-500.0,0.00022466,2]
[365634114,1749814245563,-650.0,0.00022466,2]
[365634116,1749814245572,-500.0,0.00022466,2]
[365634118,1749814245581,-500.0,0.00022466,2]
[365634120,1749814245590,-500.0,0.00022466,2]
[365634122,1749814245600,-500.0,0.00022466,2]
[365634124,1749814245609,-3000.0,0.000225,7]
[365634126,1749814245619,-165.141639,0.00022505,2]
[365634128,1749814245629,-160.0,0.00022513,4]
[365634130,1749814245638,-317.4403672,0.00022521,2]
[365634132,1749814245647,-955.9333123,0.00022521,2]
[365634135,1749814245657,-357.1606247,0.00022521,2]
[365634136,1749814245666,-153.0,0.00022521,2]
[365634139,1749814245676,-153.0,0.00022521,2]
[365634141,1749814245685,-153.0,0.00022521,2]
[365634142,1749814245694,-153.0,0.00022521,2]
[365634144,1749814245703,-153.0,0.00022521,2]
[365634146,1749814245713,-153.0,0.00022521,2]
[365634148,1749814245723,-153.0,0.00022521,2]
[365634150,1749814245732,-153.0,0.00022521,2]
[365634152,1749814245742,-75598.69358536,0.0002254,2]
[365634154,1749814245751,-151.0,0.0002254,7]
[365634156,1749814245760,-151.0,0.0002254,7]
[365634158,1749814245770,-151.0,0.0002254,7]
[365634161,1749814245780,-642.486673,0.0002267,2]
[365634162,1749814245789,-1144.0,0.00022671,2]
[365634164,1749814245799,-3000.0,0.000227,2]
[365634166,1749814245809,-151.0,0.000227,8]
[365634169,1749814245818,-3000.0,0.0002271,2]
[365634171,1749814245828,-2000.0,0.00022716,2]
[365634173,1749814245838,-3000.0,0.0002272,2]
[365634174,1749814245847,-3000.0,0.0002273,2]
[365634176,1749814245858,-171.13,0.00022738,2]
[365634178,1749814245867,-460.0,0.00022739,4]
[365634180,1749814245878,-460.0,0.00022739,2]
[365634183,1749814245888,-571.42,0.00022739,4]
[365634184,1749814245900,-460.0,0.00022739,4]
[365634187,1749814245911,-655.11,0.00022739,4]
[365634189,1749814245920,-460.0,0.00022739,4]
[365634191,1749814245930,-932.67,0.00022739,4]
[365634192,1749814245941,-460.0,0.00022739,4]
[365634194,1749814245952,-460.0,0.00022739,4]
[365634196,1749814245962,-460.0,0.00022739,4]
[365634198,1749814245972,-460.0,0.00022739,4]
[365634200,1749814245983,-460.0,0.00022739,4]
[365634202,1749814245992,-460.0,0.00022739,4]
[365634204,1749814246002,-460.0,0.00022739,4]
[365634207,1749814246012,-887.88,0.00022739,4]
[365634208,1749814246022,-2798.6,0.00022739,4]
[365634210,1749814246032,-1126.63,0.00022739,4]
[365634212,1749814246041,-717.67,0.00022739,4]
[365634215,1749814246051,-567.65980576,0.00022739,4]
[365634216,1749814246061,-1041.72,0.00022739,4]
[365634218,1749814246070,-750.28,0.00022739,4]
[365634220,1749814246080,-460.0,0.00022739,4]
[365634223,1749814246091,-645.59,0.00022739,4]
[365634225,1749814246100,-782.08,0.00022739,4]
[365634227,1749814246110,-380.0,0.00022739,4]
[365634229,1749814246119,-3000.0,0.0002274,2]
[365634230,1749814246130,-3000.0,0.0002275,2]
[365634232,1749814246139,-245.80698186,0.00022756,2]
[365634234,1749814246149,-3000.0,0.0002276,2]
[365634236,1749814246159,-466.07356246,0.00022766,2]
[365634239,1749814246169,-3000.0,0.0002277,2]
[365634241,1749814246179,-3000.0,0.0002278,2]
[365634243,1749814246189,-3000.0,0.0002279,2]
[365634244,1749814246198,-151.0,0.0002279,7]
[365634246,1749814246207,-151.0,0.0002279,7]
[365634248,1749814246217,-653.0,0.00022797,2]
[365634250,1749814246227,-2160.0,0.00022797,2]
[365634252,1749814246237,-407.078,0.00022797,2]
[365634254,1749814246247,-964.0,0.00022797,2]
[365634257,1749814246256,-3000.0,0.000228,2]
[365634258,1749814246266,-3000.0,0.0002281,2]
[365634260,1749814246275,-3000.0,0.0002282,2]
[365634263,1749814246286,-3000.0,0.0002283,2]
[365634264,1749814246297,-3000.0,0.0002284,2]
[365634266,1749814246307,-151.0,0.0002284,7]
[365634268,1749814246316,-152.86232,0.0002284,7]
[365634270,1749814246326,-151.0,0.0002284,7]
[365634272,1749814246337,-1929.783163,0.0002284,2]
[365634274,1749814246347,-1929.783163,0.0002284,2]
[365634276,1749814246357,-3000.0,0.0002285,2]
[365634278,1749814246367,-3000.0,0.0002286,2]
[365634280,1749814246378,-2193.83162,0.00022866,3]
[365634282,1749814246395,-469.86067316,0.00022868,2]
[365634284,1749814246405,-3000.0,0.0002287,2]
[365634286,1749814246417,-3000.0,0.0002288,2]
[365634288,1749814246427,-5000.0,0.0002288,2]
[365634290,1749814246438,-3000.0,0.0002289,2]
[365634292,1749814246448,-419.54655919,0.00022891,2]
[365634294,1749814246457,-3000.0,0.000229,2]
[365634296,1749814246466,-151.0,0.000229,5]
[365634298,1749814246476,-156.211411,0.000229,7]
[365634300,1749814246486,-151.0,0.000229,7]
[365634303,1749814246497,-151.0,0.000229,7]
[365634305,1749814246507,-167.068457,0.000229,7]
[365634307,1749814246517,-167.068457,0.000229,7]
[365634309,1749814246526,-3000.0,0.0002291,2]
[365634311,1749814246536,-3000.0,0.0002292,2]
[365634313,1749814246546,-3000.0,0.0002293,2]
[365634315,1749814246555,-224.060465,0.0002293,7]
[365634317,1749814246565,-151.0,0.0002293,7]
[365634328,1749814246656,-3000.0,0.0002294,2]
[365634330,1749814246678,-165.883522,0.0002294,7]
[365634332,1749814246687,-165.883522,0.0002294,7]
[365634334,1749814246697,-150.119,0.0002294,2]
[365634336,1749814246707,-3000.0,0.0002295,2]
[365634338,1749814246716,-251.723284,0.0002295,7]
[365634340,1749814246726,-151.0,0.0002295,7]
[365634342,1749814246735,-151.0,0.0002295,7]
[365634344,1749814246745,-151.0,0.0002295,7]
[365634346,1749814246754,-3000.0,0.0002296,2]
[365634348,1749814246764,-835.28007164,0.00022966,2]
[365634350,1749814246774,-160.0,0.00022966,2]
[365634352,1749814246784,-229.78555783,0.00022966,2]
[365634354,1749814246794,-12531.02669373,0.00022966,2]
[365634356,1749814246804,-160.0,0.00022966,2]
[365634358,1749814246813,-160.0,0.00022968,2]
[365634360,1749814246822,-3000.0,0.0002297,2]
[365634362,1749814246831,-151.0,0.0002297,7]
[365634364,1749814246841,-151.0,0.0002297,7]
[365634366,1749814246851,-151.0,0.0002297,7]
[365634368,1749814246860,-179.783072,0.0002297,7]
[365634369,1749814246871,-179.783072,0.0002297,7]
[365634371,1749814246891,-152.387913,0.0002297,7]
[365634373,1749814246911,-151.0,0.0002297,7]
[365634375,1749814246929,-151.0,0.0002297,7]
[365634377,1749814246941,-504.61170123,0.00022973,2]
[365634380,1749814246951,-500.0,0.00022973,2]
[365634381,1749814246961,-389.84975825,0.00022973,2]
[365634384,1749814246971,-500.0,0.00022973,2]
[365634386,1749814246981,-500.0,0.00022973,2]
[365634387,1749814246991,-500.0,0.00022973,2]
[365634389,1749814247001,-500.0,0.00022973,2]
[365634391,1749814247011,-500.0,0.00022973,2]
[365634394,1749814247023,-500.0,0.00022973,2]
[365634395,1749814247033,-500.0,0.00022973,2]
[365634397,1749814247044,-500.0,0.00022973,2]
[365634399,1749814247053,-500.0,0.00022973,2]
[365634401,1749814247063,-500.0,0.00022973,2]
[365634403,1749814247073,-500.0,0.00022973,2]
[365634405,1749814247083,-500.0,0.00022973,2]
[365634407,1749814247093,-151.0,0.00022973,7]
[365634409,1749814247102,-3000.0,0.0002298,2]
[365634411,1749814247114,-151.0,0.0002298,7]
[365634413,1749814247124,-151.0,0.0002298,7]
[365634415,1749814247137,-151.0,0.0002298,7]
[365634417,1749814247149,-151.0,0.0002298,7]
[365634419,1749814247160,-3828.500968,0.0002299,2]
[365634421,1749814247169,-151.0,0.0002299,7]
[365634423,1749814247179,-151.0,0.0002299,7]
[365634425,1749814247189,-151.0,0.0002299,7]
[365634428,1749814247199,-418.19479,0.0002299,7]
[365634429,1749814247209,-418.19479,0.0002299,7]
[365634431,1749814247218,-151.0,0.0002299,7]
[365634433,1749814247231,-151.0,0.0002299,7]
[365634436,1749814247240,-151.0,0.0002299,7]
[365634438,1749814247250,-151.0,0.0002299,7]
[365634439,1749814247260,-151.0,0.0002299,7]
[365634441,1749814247270,-151.0,0.0002299,7]
[365634443,1749814247279,-151.0,0.00022999,2]
[365634446,1749814247289,-151312.92549882,0.00023,3]
[365634448,1749814247299,-160.0,0.00023,3]
[365634450,1749814247308,-160.0,0.00023,3]
[365634452,1749814247318,-213.24139183,0.00023,3]
[365634454,1749814247327,-151.0,0.00023,7]
[365634456,1749814247337,-151.0,0.00023,7]
[365634457,1749814247346,-152.244456,0.00023,7]
[365634460,1749814247355,-151.0,0.00023,7]
[365634462,1749814247365,-151.0,0.00023,7]
[365634463,1749814247375,-151.0,0.00023,7]
[365634466,1749814247387,-151.0,0.00023,7]
[365634468,1749814247398,-151.0,0.00023,7]
[365634470,1749814247408,-151.0,0.00023,7]
[365634472,1749814247417,-151.0,0.00023,7]
[365634474,1749814247427,-151.0,0.00023,7]
[365634476,1749814247437,-151.0,0.00023,7]
[365634478,1749814247446,-165.883522,0.00023,7]
[365634480,1749814247456,-165.883522,0.00023,7]
[365634482,1749814247465,-151.610522,0.00023,7]
[365634484,1749814247475,-167.068457,0.00023,7]
[365634486,1749814247484,-167.068457,0.00023,7]
[365634488,1749814247493,-151.0,0.00023,7]
[365634490,1749814247502,-622.525357,0.00023,7]
[365634492,1749814247512,-622.525357,0.00023,7]
[365634494,1749814247521,-151.0,0.00023,7]
[365634496,1749814247531,-151.0,0.00023,7]
[365634498,1749814247540,-151.0,0.00023,7]
[365634500,1749814247550,-151.0,0.00023,7]
[365634501,1749814247558,-151.0,0.00023,7]
[365634503,1749814247568,-273.18552,0.00023,7]
[365634505,1749814247577,-151.0,0.00023,7]
[365634507,1749814247587,-151.0,0.00023,7]
[365634509,1749814247596,-151.0,0.00023,7]
[365634511,1749814247607,-213.525336,0.00023,7]
[365634513,1749814247617,-151.0,0.00023,7]
[365634515,1749814247626,-213.525336,0.00023,7]
[365634517,1749814247637,-151.0,0.00023,7]
[365634519,1749814247647,-671.753223,0.00023,7]
[365634521,1749814247657,-671.753223,0.00023,7]
[365634523,1749814247666,-151.0,0.00023,7]
[365634525,1749814247675,-418.19479,0.00023,7]
[365634527,1749814247684,-418.19479,0.00023,7]
[365634529,1749814247694,-290.359547,0.00023,7]
[365634531,1749814247703,-151.0,0.00023,7]
[365634533,1749814247713,-151.0,0.00023,7]
[365634535,1749814247722,-151.0,0.00023,7]
[365634537,1749814247731,-151.0,0.00023,7]
[365634539,1749814247741,-151.0,0.00023,7]
[365634540,1749814247750,-160.0,0.00023,3]
[365634542,1749814247760,-154.571329,0.00023,7]
[365634544,1749814247769,-151.0,0.00023,7]
[365634546,1749814247779,-151.0,0.00023,7]
[365634549,1749814247789,-151.0,0.00023,7]
[365634551,1749814247799,-179.783072,0.00023,7]
[365634552,1749814247808,-151.0,0.00023,7]
[365634554,1749814247818,-179.783072,0.00023,7]
[365634556,1749814247827,-151.0,0.00023,7]
[365634558,1749814247836,-151.0,0.00023,7]
[365634561,1749814247846,-835.28007164,0.00023,3]
[365634562,1749814247856,-835.28007164,0.00023,3]
[365634564,1749814247865,-151.0,0.00023,7]
[365634566,1749814247874,-229.78555783,0.00023,3]
[365634568,1749814247884,-151.0,0.00023,7]
[365634570,1749814247894,-1929.783163,0.00023,2]
[365634572,1749814247904,-1929.783163,0.00023,2]
[365634574,1749814247913,-500.0,0.00023,3]
[365634576,1749814247922,-500.0,0.00023,3]
[365634578,1749814247932,-160.0,0.00023,3]
[365634580,1749814247943,-500.0,0.00023,3]
[365634582,1749814247954,-12531.02669373,0.00023,7]
[365634584,1749814247964,-151.0,0.00023,7]
[365634586,1749814247973,-500.0,0.00023,3]
[365634588,1749814247985,-500.0,0.00023,3]
[365634589,1749814247995,-151.0,0.00023,7]
[365634590,1749814248004,-500.0,0.00023,3]